Cogmind - Beta 16 @@@ ROGUE MODE // 2025.11.07 @ 08:58:28 Player: Rocko1345 Result: Destroyed by G-50 Soldier with Heavy Laser Performance ------------- Evolutions (2) 1000 Regions Visited (3) 600 Robots Destroyed (69) 345 Value Destroyed (1525) 1525 Prototype IDs (10) 200 Alien Tech Used (0) 0 Bonus (0) 0 TOTAL SCORE: 3670 Bonus ------- None Cogmind --------- Core Integrity 0/550 Matter 300/300 Energy 39/100 System Corruption 0% Temperature Cool (27) Movement Core (50) Location -8/Materials Parts ------- > --- POWER (1) -------- (None) > --- PROPULSION (4) --- (None) > --- UTILITY (4) ------ (None) > --- WEAPON (2) ------- (None) > --- INVENTORY (5) ---- Improved Terrain Scan Processor Target Analyzer Hacking Suite Mini Grenade Launcher Axe Peak State ------------ > --- POWER ------------ Cooled Ion Engine > --- PROPULSION ------- Airjet Airjet Airjet Airjet > --- UTILITY ---------- Large Storage Unit Trap Scanner Targeting Computer Hacking Suite > --- WEAPON ----------- Advanced Beam Cannon Assault Rifle > --- INVENTORY -------- Ion Engine Reinforced Ion Engine Light Treads Light Treads Small Storage Unit Authchip [Armor] Recalibrator Light EM Pulse Cannon Light EM Pulse Cannon Light Assault Rifle Light Assault Rifle Improved Assault Rifle Datajack [Rating: 29] Favorites ----------- Power Light Ion Engine Engine Light Ion Engine Power Core Light Nuclear Core Propulsion Light Treads Treads Light Treads Leg Aluminum Leg Hover Unit Airjet Utility Large Storage Unit Device Improved Heat Sink Storage Large Storage Unit Processor Targeting Computer Hackware Hacking Suite Protection Medium Armor Plating Weapon Assault Rifle Energy Gun Heavy Particle Gun Energy Cannon Advanced Beam Cannon Ballistic Gun Assault Rifle Launcher Advanced EMP Blaster Build | -11 -10 -9 -8 ------- Run | Yrd Mat Mat Mat Slots Evolved 4 | . . 2 2 Power . | . . . . Propulsion 2 | . . . 2 Utility 2 | . . 2 . Weapon . | . . . . Parts Attached 43 | 6 5 19 13 Power 6 | 1 . 4 1 Engine 5 | 1 . 4 . Core 1 | . . . 1 Reactor . | . . . . Propulsion 13 | 2 3 4 4 Treads 6 | . 2 4 . Leg 3 | 2 1 . . Wheel . | . . . . Hover 4 | . . . 4 Flight . | . . . . Utility 8 | 1 2 3 2 Device 2 | . . 1 1 Storage 2 | 1 1 . . Processor 1 | . . 1 . Hackware 1 | . . 1 . Protection 2 | . 1 . 1 Artifact . | . . . . Weapon 16 | 2 . 8 6 Energy Gun 4 | . . 2 2 Energy Cannon 1 | . . 1 . Ballistic Gun 10 | 2 . 5 3 Ballistic Cannon . | . . . . Launcher 1 | . . . 1 Special Weapon . | . . . . Impact Weapon . | . . . . Slashing Weapon . | . . . . Piercing Weapon . | . . . . Special Melee Weapon . | . . . . Unidentified Prototypes 8 | . . 5 3 Parts Lost 22 | . . 8 14 Power 3 | . . 1 2 Propulsion 7 | . . 2 5 Utility 4 | . . 1 3 Weapon 8 | . . 4 4 Highest Loss Streak 8 | . . 3 8 To Critical Strikes . | . . . . Average Backups 10 | 1 6 10 13 Power 1 | . 1 1 . Propulsion 1 | . 1 2 1 Utility 3 | . 1 2 5 Weapon 3 | . 1 3 5 Tool/Special . | . . . . Unused Backups 16 | . . . 16 Power 1 | . . . 1 Propulsion . | . . . . Utility 7 | . . . 7 Weapon 6 | . . . 6 Tool/Special 2 | . . . 2 Average Slot Usage (%) 88 | . 96 89 79 Engine 9 | . 14 10 2 Core 1 | . . . 5 Treads 18 | . 19 21 12 Leg 2 | . 8 . . Hover 2 | . . . 8 Device 2 | . . 1 8 Storage 11 | . 14 11 9 Processor 7 | . . 10 8 Hackware 7 | . . 11 8 Protection 3 | . 10 2 . Energy Gun 1 | . . 1 4 Energy Cannon 1 | . . 3 . Ballistic Gun 17 | . 28 16 10 Peak Build Rating 29 | 6 9 20 29 Average Rating 14 | 4 8 14 22 On Entrance 8 | . 6 9 20 Avg Prop Armor Cover (%) . | . . . . Naked Turns 4 | . . . 4 Heaviest Build 39 | 12 34 39 36 Greatest Support 40 | 20 40 40 40 Greatest Overweight (x) 10 | . . 10 3 Average Overweight (x) . | . . . . Largest Inventory Capacity 15 | 8 15 15 15 Average Capacity 14 | 6 12 15 14 Most Carried 15 | 3 9 15 15 Average Carried 10 | 1 6 10 14 Final Capacity 15 | 8 15 15 5 Final Carried 15 | 3 9 15 5 Class Distribution -------------------- 71% | Mutant 28% | Scavenger-Mutant Dominant Class ---------------- Mutant | -10/Materials Mutant | -9/Materials Scavenger-Mutant | -8/Materials Resources | -11 -10 -9 -8 ----------- Run | Yrd Mat Mat Mat Matter Collected 1481 | 233 273 688 287 Remotely . | . . . . Salvage Created 2188 | . 484 1039 665 Parts 143 | . 31 68 44 Haulers Intercepted 8 | . 1 6 1 Recyclers Shooed . | . . . . Parts Field Recycled . | . . . . Retrieved Matter . | . . . . Parts Self-Destructed . | . . . . Prevented . | . . . . Parts Restored . | . . . . Kills | -11 -10 -9 -8 ------- Run | Yrd Mat Mat Mat Combat Hostiles Destroyed 49 | . 10 23 16 Guns 46 | . 10 20 16 Cannons 2 | . . 2 . AOE 1 | . . 1 . Classes Destroyed 9 | . 5 4 . Worker 2 | . . 1 1 Hauler 8 | . 1 6 1 Mechanic 1 | . . 1 . Operator 3 | . 3 . . Watcher 6 | . 2 4 . Swarmer 21 | . 3 12 6 Grunt 22 | . 7 8 7 Brawler 1 | . . 1 . Sentry 5 | . . 2 3 Best Kill Streak 6 | . 4 6 6 Combat Bots Only 6 | . 3 6 6 Max Kills in Single Turn 2 | . 2 1 1 Gunslinging 1 | . 1 . . Exploded 1 | . . 1 . Melee . | . . . . Uniques/NPCs Destroyed . | . . . . Combat | -11 -10 -9 -8 -------- Run | Yrd Mat Mat Mat Hostile Shots Fired 394 | . 45 181 168 Missed 90 | . 14 40 36 Hits 304 | . 31 141 132 Projectile 304 | . 31 141 132 Critical Strikes 7 | . . . 7 Damage Taken 3708 | . 307 1537 1864 Core 888 | . 29 294 565 Absorbed by Shields . | . . . . Core Remaining (%) 71 | 100 88 26 . Volleys Fired 260 | . 42 151 67 Largest 2 | . 2 2 2 Hottest 88 | . 40 88 78 Shots Fired 454 | . 84 257 113 Gun 432 | . 84 235 113 Cannon 22 | . . 22 . Launcher . | . . . . Special . | . . . . Kinetic 384 | . 84 219 81 Thermal 70 | . . 38 32 Explosive . | . . . . Electromagnetic . | . . . . Robot Hit Streak 18 | . 8 18 12 Robot Miss Streak 6 | . 4 6 4 Penetration Max . | . . . . Secondary Targets 5 | . 1 3 1 Max Gunslinging Chain 1 | . 1 1 1 Shots Hit Robots 315 | . 56 179 80 Core Hits 112 | . 25 54 33 Critical Kills . | . . . . Critical Parts Destroyed 3 | . . 2 1 Critical Strikes 3 | . . 2 1 Destroy 3 | . . 2 1 Melee Attacks . | . . . . Impact . | . . . . Slashing . | . . . . Piercing . | . . . . Sneak Attacks . | . . . . Combat Hostiles . | . . . . Follow-up Attacks . | . . . . Damage Inflicted 4149 | . 758 2285 1106 Guns 3784 | . 758 1920 1106 Cannons 247 | . . 247 . Explosions 111 | . . 111 . Melee . | . . . . Ramming 7 | . . 7 . Kinetic 3181 | . 758 1730 693 Thermal 961 | . . 548 413 Explosive . | . . . . Electromagnetic . | . . . . Impact . | . . . . Slashing . | . . . . Piercing . | . . . . Highest Corruption . | . . . . Average Corruption . | . . . . Corruption Purged . | . . . . Corruption Blocked . | . . . . Overload Shots . | . . . . Overflow Damage 41 | . . 41 . Projectiles . | . . . . Explosions 41 | . . 41 . Melee . | . . . . Knockbacks . | . . . . Impact . | . . . . Kinetic . | . . . . Secondary . | . . . . Self-Inflicted Damage 151 | . . 151 . Shots 2 | . . 2 . Rammed 2 | . . 2 . Targets Rammed 2 | . . 2 . Kicked . | . . . . Crushed . | . . . . Highest Temperature 134 | . 6 134 33 Average Temperature 23 | . 2 25 15 Received Heat Transfer 1521 | . 120 411 990 Siege Activations . | . . . . Martial Activations . | . . . . Shielding Activations . | . . . . Robots Disrupted . | . . . . Combat Hostiles . | . . . . Robots Corrupted . | . . . . Combat Hostiles . | . . . . Parts Fried . | . . . . Impact Corruptions . | . . . . Robots Melted . | . . . . Combat Hostiles . | . . . . Parts Melted 2 | . . 1 1 Heat Transferred 1789 | . . 975 814 Parts Sabotaged . | . . . . Parts Stolen . | . . . . Parts Stripped . | . . . . Power Chain Reactions . | . . . . Alert | -11 -10 -9 -8 ------- Run | Yrd Mat Mat Mat Maximum Alert Level 1 | . . 1 . Low Security (%) 75 | 100 100 45 100 Level 1 24 | . . 54 . Level 2 . | . . . . Level 3 . | . . . . Level 4 . | . . . . Level 5 . | . . . . High Security . | . . . . Max Security . | . . . . Peak Influence 297 | . 117 297 199 Initial 115 | . . . 115 Average 112 | . 29 167 114 Influence Increases 1597 | . 287 805 505 Destroy 0b10 Robot/C 980 | . 200 460 320 Destroy 0b10 Robot/NC 100 | . 30 60 10 Destroy Leader 198 | . 46 90 62 Successful Hack 35 | . 10 3 22 Disable Machine 60 | . . 60 . Destroy Structure 44 | . 1 42 1 Partial Spotted 15 | . . . 15 Lose Combat Pursuer 165 | . . 90 75 Influence Decreases 1531 | . 287 532 712 Entered New Map 158 | . . . 158 Time Decay 1143 | . 287 452 404 Lost Part 220 | . . 80 140 Lost Ally 10 | . . . 10 Squads Dispatched 4 | . 3 . 1 Investigation 1 | . . . 1 Extermination . | . . . . Reinforcement 3 | . 3 . . Assault . | . . . . Garrison . | . . . . Intercept . | . . . . Searches Triggered . | . . . . Construction Impeded . | . . . . Haulers Reinforced . | . . . . Active Scanning Responses . | . . . . Cargo Convoy Interrupts . | . . . . Stealth | -11 -10 -9 -8 --------- Run | Yrd Mat Mat Mat Distress Signals 7 | . 4 1 2 Communications Jammed . | . . . . Distress Signals . | . . . . Times Spotted 93 | . 22 41 30 Peak Tracking Total 8 | . 5 5 8 Tactical Retreats 8 | . . 6 2 Traps | -11 -10 -9 -8 ------- Run | Yrd Mat Mat Mat Traps Triggered 1 | . . . 1 Indirectly . | . . . . Trap Hack Attempts . | . . . . Triggered . | . . . . Disarmed . | . . . . Reprogrammed . | . . . . Reused . | . . . . Traps Extracted . | . . . . Installed . | . . . . Triggered . | . . . . Machines | -11 -10 -9 -8 ---------- Run | Yrd Mat Mat Mat Machines Disabled 4 | . . 4 . Max in Single Turn 3 | . . 3 . Machines Repaired . | . . . . Machines Dismantled . | . . . . Machines Sabotaged . | . . . . Overloaded Fab Kills . | . . . . Hacking | -11 -10 -9 -8 --------- Run | Yrd Mat Mat Mat Machines Accessed 12 | . 2 5 5 Terminals 8 | . 1 3 4 Fabricators . | . . . . Repair Stations . | . . . . Recycling Units 2 | . 1 1 . Scanalyzers 2 | . . 1 1 Garrison Access . | . . . . Total Hacks 47 | . 3 15 29 Successful 30 | . 3 10 17 Failed 17 | . . 5 12 Catastrophic . | . . . . Database Lockouts . | . . . . Manual 17 | . 1 7 9 Terminals 32 | . 2 9 21 Fabricators . | . . . . Repair Stations . | . . . . Recycling Units 4 | . 1 3 . Scanalyzers 11 | . . 3 8 Garrison Access . | . . . . Terminal Hacks 8 | . 1 2 5 Prototype ID Bank 1 | . . . 1 Level Access Points 1 | . . . 1 Locate Traps 1 | . . 1 . Transport Status 1 | . . . 1 Hauler Manifests 1 | . . . 1 Zone Layout 3 | . 1 1 1 Fabricator Hacks . | . . . . Repair Station Hacks . | . . . . Recycling Unit Hacks 3 | . 1 2 . Report Inventory 2 | . 1 1 . Retrieve Components 1 | . . 1 . Scanalyzer 11 | . . 3 8 Insert Component 2 | . . 2 . Retrieve Study 9 | . . 1 8 Garrison Access Hacks . | . . . . Unauthorized Hacks 8 | . 1 3 4 Terminals 8 | . 1 3 4 Assimilate 1 | . . . 1 Botnet 5 | . 1 2 2 Operators 2 | . . 1 1 Fabricators . | . . . . Repair Stations . | . . . . Recycling Units . | . . . . Scanalyzers . | . . . . Garrison Access . | . . . . Data Cores Recovered . | . . . . Used . | . . . . Hacking Detections 10 | . 1 5 4 Full Trace Events 1 | . . 1 . Feedback Events . | . . . . Feedback Blocked . | . . . . Robot Schematics Acquired . | . . . . Robots Built . | . . . . Authchips . | . . . . Time . | . . . . Total Robot Build Rating . | . . . . Part Schematics Acquired . | . . . . Parts Built . | . . . . Authchips . | . . . . Time . | . . . . Total Part Build Rating . | . . . . Part Studies Acquired 8 | . . . 8 Parts Repaired . | . . . . Time . | . . . . Parts Recycled . | . . . . Recycled Matter . | . . . . Retrieved Matter . | . . . . Retrieved Components 2 | . . 2 . Parts Scanalyzed . | . . . . Part Schematics Acquired . | . . . . Parts Damaged . | . . . . Bothacking | -11 -10 -9 -8 ------------ Run | Yrd Mat Mat Mat Used RIF Installer . | . . . . Robots Hacked . | . . . . Non-combat . | . . . . Combat . | . . . . Robot Hacks Applied . | . . . . Relay Couplers Released . | . . . . Fabnet Peak Effective % . | . . . . Robots Rewired . | . . . . Allies Hacked . | . . . . Hacks Repelled . | . . . . Allies | -11 -10 -9 -8 -------- Run | Yrd Mat Mat Mat Total Allies 1 | . . . 1 Largest Group 1 | . . . 1 Highest-Rated Group 10 | . . . 10 Highest-Rated Ally 10 | . . . 10 Total Orders . | . . . . Ally Attacks . | . . . . Total Damage . | . . . . Kills . | . . . . Allies Corrupted . | . . . . Allies Melted . | . . . . Intel | -11 -10 -9 -8 ------- Run | Yrd Mat Mat Mat Active Infowar (turns) 455 | . . 194 261 Traps 455 | . . 194 261 Robot Analysis Total . | . . . . Derelict Logs Recovered . | . . . . Drone Launches . | . . . . Drone Recoveries . | . . . . Exploration | -11 -10 -9 -8 ------------- Run | Yrd Mat Mat Mat Turns Passed 3607 | 66 982 1588 971 Spaces Moved 1773 | 52 475 683 563 Core 18 | 11 . 1 6 Treads 1327 | . 314 682 331 Legs 202 | 41 161 . . Wheels . | . . . . Hover 226 | . . . 226 Flight . | . . . . Fastest Speed 48 | 50 120 160 48 Average Speed 141 | 105 146 160 118 Slowest Speed 550 | 120 160 550 240 Overloaded Moves . | . . . . Propulsion Burnouts . | . . . . Robots Hopped . | . . . . Potential Cave-ins . | . . . . Cave-ins Triggered . | . . . . Exploration Rate (%) 35 | 4 58 41 40 Regions Visited 3 Branch Regions . Pre-discovered Areas . | . . . . Known Exits Taken . | . . . . Unknown Exits Taken 3 | 1 1 1 . Scrap Searched . | . . . . Spaces Dug . | . . . . Terrain Destroyed 46 | . . 46 . Melee . | . . . . Projectile . | . . . . AOE 46 | . . 46 . Terrain Rammed . | . . . . Walls Destroyed . | . . . . Machines Disabled . | . . . . Actions | -11 -10 -9 -8 --------- Run | Yrd Mat Mat Mat Total 2430 | 60 677 929 764 Wait 292 | . 146 59 87 Move 1770 | 51 474 682 563 Hop . | . . . . Pick Up 35 | 3 7 10 15 Fast Attach 19 | 6 1 7 5 Attach 12 | . . 6 6 Detach 2 | . . 1 1 Swap 16 | . 4 7 5 Drop 22 | . 3 4 15 Fire 260 | . 42 151 67 Melee . | . . . . Ram . | . . . . Kick . | . . . . Crush 2 | . . 2 . Escape Stasis . | . . . . Rewire . | . . . . Trap . | . . . . Miscellaneous . | . . . . Route ------- -11/Scrapyard -10/Materials (discovered 2 exits: *Mat / [*Min]) -9/Materials (discovered 2 exits: *Mat / [*Min]) -8/Materials (discovered 4 exits: Fac x3 / [*Sto]) History --------- Turn | Location | Event 6 | -11/Scrapyard | Discovered new exit (range 16) 67 | -11/Scrapyard | Entered Materials 217 | -10/Materials | Discovered new exit (range 6) 342 | -10/Materials | Build established: Mutant 776 | -10/Materials | Discovered new exit (range 14) 1049 | -10/Materials | Entered another Materials area 1049 | -9/Materials | Evolved 2 slots: Utility x2 1565 | -9/Materials | Discovered new exit (range 12) 1625 | -9/Materials | Lost 3 parts (2n1w) 1770 | -9/Materials | Core integrity fell below 50% 1921 | -9/Materials | Discovered new exit (range 16) 2068 | -9/Materials | Build established: Scavenger-Mutant 2424 | -9/Materials | Build established: Mutant 2637 | -9/Materials | Entered another Materials area 2637 | -8/Materials | Evolved 2 slots: Propulsion x2 2637 | -8/Materials | Discovered new exit (range 5) 2959 | -8/Materials | Lost 6 parts (1p3n1u1w) 3030 | -8/Materials | Identified exit to Factory 3205 | -8/Materials | Core integrity fell below 50% 3226 | -8/Materials | Build established: Scavenger-Mutant 3588 | -8/Materials | Core integrity fell below 20% 3604 | -8/Materials | Released all parts (3) 3608 | -8/Materials | Destroyed by G-50 Soldier with Heavy Laser Last Messages --------------- 03579_ Lgt. Treads+ destroyed. 03580_ R-06 Scavenger collects Imp. Ion Engine. 03582_ Hacking Suite destroyed. 03582_ Critical hit (Burn: +37). 03584_ R-06 Scavenger collects Lgt. Treads+. 03584_ Lgt. Assault Rifle+ destroyed. 03585_ Targeting Computer destroyed. 03586_ G-47 Trooper heat damages Lgt. Nuclear Core. 03590_ R-06 Scavenger collects Particle Gun+. 03590_ Critical hit (Burn: +37). 03594_ G-47 Trooper destroyed. 03600_ Hvy. Particle Gun destroyed. 03604_ Released Imp. Heat Sink. 03604_ Released Lrg. Storage Unit. 03604_ Released Hvy. Armor Plating. 03604_ Acquired 17 matter. 03605_ Extracted 3 matter. 03607_ Dropped Particle Gun+. 03607_ Acquired Hacking Suite. 03608_ Critical hit (Burn: +37). Map ----- +----------------------------------------------------+ | ???????????????????????????????????????????????### | | ???????????????????????????????????????????????# | | ???????????????????????????????????????????????# | | ?????????????????????#######?????????????####### | | ?????????????????????# ############### # | | ??????????????????#### [ ### | | ??????????????????# " T | | ??????????????????# ## ### | | ??????????????????# ## #######+#######] #?? | | ????????????#######+### ] ##?# / !#?#######?? | | ????????????# # #### ] !! #?????????? | | ????????????# """ + + ! !#?????????? | | ????????????# """"" # #### ] ! #?????????? | | ????????????# """"" # #??###############?##### | | ????????????# """"" ## ##?????# # #?# | | ??????????????? """ ## #??????# < # """#?# | | ???????????????? ## #??????# # """#?# """ | | ??????????????? ## #??????# + """#?# """ | | ???????????????######### #??????# # #?# """ | | ???????????????????????#+######## # #?# | | ???????????????????????# # ############## | | ???????????????????????#] """ # # #??? | | ???????????????????????#/%!"""" #????????????????? | | ???????????????????????#g!" "" #????????????????? | | ???????????????????????#= [""" + ???????????????? | | ???????????????????????#!@g "" #????????????????? | | ???????????????????????#!!*g #????????????????? | | ???????????????????????#!"T" #????????????????? | | ???????????????????????# """ %! #????????????????? | | ???????????????????????######## #????????????????? | | ???????????????????????????????##????????????????? | | ?????????????????????????????????????????????????? | | ?????????????????????????????????????????????????? | | ?????????????????????????????????????????????????? | | ?????????????????????????????????????????????????? | | ?????????????????????????????????????????????????? | | ?????????????????????????????????????????????????? | | ?????????????????????????????????????????????????? | | ?????????????????????????????????????????????????? | | ?????????????????????????????????????????????????? | | ?????????????????????????????????????????????????? | | ?????????????????????????????????????????????????? | | ?????????????????????????????????????????????????# | | ???????????????????????????????????????????????? | | ???????????????????????????????????????????????? | | ???????????????????????????????????????????????? | | ?????????????????????????????????????????????????# | | ?????????????????????????????????????????????????? | | ?????????????????????????????????????????????????? | | ?????????????????????????????????????????????????? | +----------------------------------------------------+ Best States ------------- Heat Dissipation 45 Energy Generation 15 Energy Capacity 280 Matter Stores 300 Matter Capacity 300 Sight Range 16 Terrain Scan Density 10 Armor Coverage 600 Evasion (%) 55 Targeting Accuracy 5 Recoil Reduction 2 Offensive Hacking 10 Authchip Count 1 Item Schematics ----------------- None Robot Schematics ------------------ None Fabricated ------------ Nothing Repaired ---------- Nothing Studied --------- Lgt. Treads | -8/Materials | Hacked Hvy. Assault Rifle | -8/Materials | Hacked Lgt. Nuclear Core | -8/Materials | Hacked Particle Gun | -8/Materials | Hacked Mni. Grenade Launcher | -8/Materials | Hacked Lgt. EM Pulse Cannon | -8/Materials | Hacked Lgt. Assault Rifle | -8/Materials | Hacked Imp. Datajack | -8/Materials | Hacked Alien Tech Used ----------------- None Achievements -------------- None Challenges ------------ None Game ------ Seed NullStrikeReconstructor Manual? 0 Play Time 00:28:59 Cumulative 239.1 hours Start 2025.11.07 @ 08:31:07 End 2025.11.07 @ 08:58:28 Sessions 1 Manual Loads 0 Difficulty Rogue Special Mode None Game No. 291 Rogue 117 Adventurer 174 Explorer 0 Win Type - Total 1 Types 1/0/0/0/0/0/0/0/0/0 Lore% 66 Gallery% 60 Achievement% 42 Wizard Run 0 Options --------- Layout 0 ASCII 0 Keyboard 1 Movement Numpad Keybinds 0 Fullscreen 1 Font 18/Terminus Map View 76x50 Zoom Use 0% Tactical HUD 1 Map Filters NONE Filters NONE Steam 1 RUN: b84dadb2-ed0f-4b0e-881f-8cddfcb9e6a7